fUST/lending_fUST_20250203
["ID","MTS","AMOUNT","RATE_DAILY","PERIOD"]
[351424992,1738566644952,-739.54,0.00016986,2]
[351424993,1738566644961,-528.88584502,0.00016986,2]
[351424994,1738566644973,-500.0,0.00016986,2]
[351424995,1738566644986,-1726.8,0.00016986,2]
[351424996,1738566644997,-333.2306584,0.00016986,2]
[351424997,1738566645007,-500.0,0.00016986,2]
[351424998,1738566645017,-2218.13,0.00016986,2]
[351424999,1738566645028,-500.0,0.00016986,2]
[351425000,1738566645038,-500.0,0.00016986,2]
[351425001,1738566645048,-1325.61,0.00016986,2]
[351425002,1738566645057,-500.0,0.00016986,2]
[351425003,1738566645067,-500.0,0.00016986,2]
[351425004,1738566645076,-3962.47,0.00016986,2]
[351425005,1738566645086,-500.0,0.00016986,2]
[351425006,1738566645095,-803.39,0.00016986,2]
[351425007,1738566645105,-500.0,0.00016986,2]
[351425008,1738566645219,-500.0,0.00016986,2]
[351425009,1738566645229,-586.48,0.00016986,2]
[351425010,1738566645239,-2414.73,0.00016986,2]
[351425011,1738566645249,-500.0,0.00016986,2]
[351425012,1738566645258,-500.0,0.00016986,2]
[351425013,1738566645268,-603.88,0.00016986,2]
[351425014,1738566645278,-500.0,0.00016986,2]
[351425015,1738566645288,-500.0,0.00016986,2]
[351425016,1738566645297,-500.0,0.00016986,2]
[351425017,1738566645307,-4011.08,0.00016986,2]
[351425018,1738566645317,-986.66,0.00016986,2]
[351425019,1738566645326,-500.0,0.00016986,2]
[351425020,1738566645336,-500.0,0.00016986,2]
[351425021,1738566645346,-3160.39,0.00016986,2]
[351425022,1738566645355,-500.0,0.00016986,2]
[351425023,1738566645366,-500.0,0.00016986,2]
[351425024,1738566645376,-9304.74,0.00016986,2]
[351425025,1738566645386,-500.0,0.00016986,2]
[351425026,1738566645396,-500.0,0.00016986,2]
[351425027,1738566645405,-1439.17,0.00016986,2]
[351425028,1738566645414,-500.0,0.00016986,2]
[351425029,1738566645424,-500.0,0.00016986,2]
[351425030,1738566645433,-500.0,0.00016986,2]
[351425031,1738566645443,-1203.81,0.00016986,2]
[351425032,1738566645452,-500.0,0.00016986,2]
[351425033,1738566645461,-621.91352933,0.00016986,2]
[351425034,1738566645471,-640.52544281,0.00016986,2]
[351425035,1738566645481,-593.75,0.00016986,2]
[351425036,1738566645490,-500.0,0.00016986,2]
[351425037,1738566645499,-500.0,0.00016986,2]
[351425038,1738566645509,-500.0,0.00016986,2]
[351425039,1738566645523,-500.0,0.00016986,2]
[351425040,1738566645543,-589.27,0.00016986,2]
[351425041,1738566645562,-829.0,0.00016986,2]
[351425042,1738566645579,-646.74,0.00016986,2]
[351425043,1738566645591,-500.0,0.00016986,2]
[351425044,1738566645601,-500.0,0.00016986,2]
[351425045,1738566645610,-500.0,0.00016986,2]
[351425046,1738566645621,-776.57,0.00016986,2]
[351425047,1738566645630,-60036.29,0.00016986,2]
[351425048,1738566645639,-500.0,0.00016986,2]
[351425049,1738566645649,-747.11,0.00016986,2]
[351425050,1738566645659,-500.0,0.00016986,2]
[351425051,1738566645671,-500.0,0.00016986,2]
[351425052,1738566645681,-1220.82,0.00016986,2]
[351425053,1738566645691,-500.0,0.00016986,2]
[351425054,1738566645701,-500.0,0.00016986,2]
[351425055,1738566645712,-500.0,0.00016986,2]
[351425056,1738566645722,-500.0,0.00016986,2]
[351425057,1738566645732,-1343.37,0.00016986,2]
[351425058,1738566645742,-510.48061614,0.00016986,2]
[351425059,1738566645752,-13816.97,0.00016986,2]
[351425060,1738566645762,-500.0,0.00016986,2]
[351425061,1738566645773,-500.0,0.00016986,2]
[351425062,1738566645785,-500.0,0.00016986,2]
[351425063,1738566645794,-500.0,0.00016986,2]
[351425064,1738566645803,-704.42,0.00016986,2]
[351425065,1738566645812,-500.0,0.00016986,2]
[351425066,1738566645822,-2164.57,0.00016986,2]
[351425067,1738566645832,-2634.75,0.00016986,2]
[351425068,1738566645842,-500.0,0.00016986,2]
[351425070,1738566645852,-894.5,0.00016986,2]
[351425072,1738566645863,-538.94,0.00016986,2]
[351425074,1738566645873,-500.0,0.00016986,2]
[351425076,1738566645882,-1586.39,0.00016986,2]
[351425077,1738566645892,-1000.0,0.00016986,7]
[351425079,1738566645901,-609.26,0.00016986,2]
[351425080,1738566645911,-500.0,0.00016986,2]
[351425082,1738566645920,-500.0,0.00016986,2]
[351425083,1738566645930,-500.0,0.00016986,2]
[351425084,1738566645940,-5712.66,0.00016986,2]
[351425085,1738566645950,-1112.34,0.00016986,2]
[351425086,1738566645961,-1163.8,0.00016986,2]
[351425087,1738566645970,-500.0,0.00016986,2]
[351425088,1738566645980,-795.43,0.00016986,2]
[351425089,1738566645990,-500.0,0.00016986,2]
[351425090,1738566646001,-500.0,0.00016986,2]
[351425091,1738566646011,-500.0,0.00016986,2]
[351425092,1738566646021,-508.55370256,0.00016986,2]
[351425093,1738566646031,-575.26,0.00016986,2]
[351425094,1738566646040,-722.58,0.00016986,2]
[351425095,1738566646051,-500.0,0.00016986,2]
[351425096,1738566646060,-2753.55,0.00016986,2]
[351425097,1738566646070,-500.0,0.00016986,2]
[351425098,1738566646079,-500.0,0.00016986,2]
[351425099,1738566646088,-1433.14991822,0.00016999,2]
[351425100,1738566646098,-160.0,0.00016999,2]
[351425101,1738566646107,-500.0,0.00017,7]
[351425102,1738566646121,-500.0,0.00017,7]
[351425103,1738566646131,-500.0,0.00017,7]
[351425104,1738566646140,-500.0,0.00017,7]
[351425105,1738566646150,-500.0,0.00017,7]
[351425106,1738566646159,-500.0,0.00017,7]
[351425107,1738566646169,-500.0,0.00017,7]
[351425108,1738566646178,-500.0,0.00017,7]
[351425109,1738566646188,-500.0,0.00017,7]
[351425111,1738566646197,-344.38,0.00017,7]
[351425112,1738566646206,-11228.0,0.00017,2]
[351425113,1738566646215,-1000.0,0.00017,17]
[351425114,1738566646225,-5000.0,0.00017,2]
[351425115,1738566646235,-151.0,0.00017,2]
[351425116,1738566646244,-3000.0,0.00017021,2]
[351425118,1738566646254,-1001.14795475,0.00017021,2]
[351425119,1738566646263,-501.8525195,0.00017021,2]
[351425120,1738566646273,-182.688,0.0001704,2]
[351425121,1738566646282,-154.49192,0.00017052,5]
[351425122,1738566646292,-6231.37845344,0.0001706,2]
[351425123,1738566646302,-151.0,0.000171,2]
[351425124,1738566646311,-1433.14991822,0.00017111,2]
[351425125,1738566646320,-1021.61697888,0.00017121,2]
[351425126,1738566646329,-151.0,0.00017122,2]
[351425127,1738566646339,-151.0,0.00017122,2]
[351425128,1738566646348,-151.0,0.00017122,2]
[351425129,1738566646358,-187.347689,0.00017122,2]
[351425130,1738566646372,-187.347689,0.00017122,2]
[351425131,1738566646381,-151.0,0.00017123,2]
[351425132,1738566646390,-151.0,0.00017123,2]
[351425134,1738566646399,-151.0,0.00017123,2]
[351425136,1738566646408,-152.952818,0.00017123,2]
[351425138,1738566646418,-1728.242392,0.00017123,2]
[351425139,1738566646426,-2103.510188,0.00017123,2]
[351425141,1738566646436,-214.411774,0.00017123,2]
[351425143,1738566646445,-214.411774,0.00017123,2]
[351425145,1738566646455,-2103.510188,0.00017123,2]
[351425146,1738566646466,-500.0,0.00017123,2]
[351425147,1738566646476,-500.0,0.00017123,2]
[351425148,1738566646485,-500.0,0.00017123,2]
[351425149,1738566646494,-500.0,0.00017123,2]
[351425150,1738566646505,-500.0,0.00017123,2]
[351425151,1738566646515,-471.354034,0.00017123,2]
[351425152,1738566646524,-189.499866,0.00017123,2]
[351425153,1738566646534,-189.499866,0.00017123,2]
[351425154,1738566646544,-151.0,0.00017123,2]
[351425155,1738566646554,-151.0,0.00017123,2]
[351425156,1738566646563,-171.840003,0.00017123,2]
[351425157,1738566646573,-151.0,0.00017123,2]
[351425159,1738566646583,-151.0,0.00017123,2]
[351425160,1738566646592,-151.0,0.00017123,2]
[351425161,1738566646602,-151.0,0.00017123,2]
[351425162,1738566646612,-500.0,0.00017123,2]
[351425163,1738566646623,-500.0,0.00017123,2]
[351425164,1738566646633,-500.0,0.00017123,2]
[351425165,1738566646642,-500.0,0.00017123,2]
[351425166,1738566646652,-500.0,0.00017123,2]
[351425167,1738566646661,-500.0,0.00017123,2]
[351425168,1738566646671,-500.0,0.00017123,2]
[351425169,1738566646680,-500.0,0.00017123,2]
[351425170,1738566646690,-500.0,0.00017123,2]
[351425171,1738566646700,-377.46473609,0.00017123,2]
[351425172,1738566646709,-500.0,0.00017123,2]
[351425173,1738566646719,-500.0,0.00017123,2]
[351425174,1738566646728,-500.0,0.00017123,2]
[351425175,1738566646738,-500.0,0.00017123,2]
[351425176,1738566646748,-500.0,0.00017123,2]
[351425177,1738566646759,-597.26,0.00017123,2]
[351425178,1738566646769,-554.86,0.00017123,2]
[351425179,1738566646779,-228.93837607,0.00017123,2]
[351425180,1738566646789,-500.0,0.00017123,2]
[351425181,1738566646799,-500.0,0.00017123,2]
[351425182,1738566646808,-500.0,0.00017123,2]
[351425183,1738566646817,-500.0,0.00017123,2]
[351425184,1738566646827,-538.48,0.00017123,2]
[351425185,1738566646836,-889.56,0.00017123,2]
[351425186,1738566646845,-500.0,0.00017123,2]
[351425187,1738566646856,-500.0,0.00017123,2]
[351425188,1738566646868,-500.0,0.00017123,2]
[351425189,1738566646878,-500.0,0.00017123,2]
[351425190,1738566646887,-565.19,0.00017123,2]
[351425191,1738566646896,-500.0,0.00017123,2]
[351425192,1738566646906,-500.0,0.00017123,2]
[351425193,1738566646917,-633.53,0.00017123,2]
[351425194,1738566646929,-619.09,0.00017123,2]
[351425195,1738566646939,-500.0,0.00017123,2]
[351425196,1738566646950,-500.0,0.00017123,2]
[351425197,1738566646960,-500.0,0.00017123,2]
[351425198,1738566646970,-500.0,0.00017123,2]
[351425199,1738566646981,-500.0,0.00017123,2]
[351425200,1738566646990,-500.0,0.00017123,2]
[351425201,1738566647000,-500.0,0.00017123,2]
[351425202,1738566647009,-500.0,0.00017123,2]
[351425203,1738566647018,-500.0,0.00017123,2]
[351425204,1738566647028,-628.12,0.00017123,2]
[351425205,1738566647037,-500.0,0.00017123,2]
[351425206,1738566647046,-500.0,0.00017123,2]
[351425207,1738566647056,-500.0,0.00017123,2]
[351425208,1738566647066,-263.03043507,0.00017123,2]
[351425209,1738566647075,-500.0,0.00017123,2]
[351425210,1738566647085,-500.0,0.00017123,2]
[351425211,1738566647094,-500.0,0.00017123,2]
[351425212,1738566647103,-500.0,0.00017123,2]
[351425213,1738566647209,-513.07,0.00017123,2]
[351425214,1738566647218,-500.0,0.00017123,2]
[351425215,1738566647227,-569.36,0.00017123,2]
[351425216,1738566647236,-602.71,0.00017123,2]
[351425217,1738566647245,-658.74,0.00017123,2]
[351425218,1738566647255,-500.0,0.00017123,2]
[351425219,1738566647264,-500.0,0.00017123,2]
[351425220,1738566647273,-500.0,0.00017123,2]
[351425221,1738566647283,-500.0,0.00017123,2]
[351425222,1738566647292,-500.0,0.00017123,2]
[351425223,1738566647301,-500.0,0.00017123,2]
[351425224,1738566647311,-500.0,0.00017123,2]
[351425225,1738566647321,-500.0,0.00017123,2]
[351425226,1738566647330,-201.4926896,0.00017123,2]
[351425227,1738566647341,-500.0,0.00017123,2]
[351425228,1738566647351,-500.0,0.00017123,2]
[351425229,1738566647360,-500.0,0.00017123,2]
[351425230,1738566647374,-500.0,0.00017123,2]
[351425231,1738566647383,-500.0,0.00017123,2]
[351425232,1738566647392,-500.0,0.00017123,2]
[351425233,1738566647402,-500.0,0.00017123,2]
[351425234,1738566647411,-500.0,0.00017123,2]
[351425235,1738566647421,-500.0,0.00017123,2]
[351425236,1738566647431,-558.37,0.00017123,2]
[351425237,1738566647440,-543.56,0.00017123,2]
[351425238,1738566647450,-151.0,0.00017123,2]
[351425239,1738566647460,-500.0,0.00017123,2]
[351425240,1738566647469,-500.0,0.00017123,2]
[351425241,1738566647479,-500.0,0.00017123,2]
[351425242,1738566647488,-567.36,0.00017123,2]
[351425243,1738566647497,-500.0,0.00017123,2]
[351425244,1738566647508,-593.93,0.00017123,2]
[351425245,1738566647520,-1178.59,0.00017123,2]
[351425246,1738566647530,-1456.62,0.00017123,2]
[351425247,1738566647540,-500.0,0.00017123,2]
[351425248,1738566647551,-960.4,0.00017123,2]
[351425249,1738566647561,-172.66659194,0.00017123,2]
[351425250,1738566647571,-500.0,0.00017123,2]
[351425251,1738566647581,-739.54,0.00017123,2]
[351425252,1738566647591,-500.0,0.00017123,2]
[351425253,1738566647601,-1726.8,0.00017123,2]
[351425254,1738566647610,-500.0,0.00017123,2]
[351425255,1738566647622,-2218.13,0.00017123,2]
[351425256,1738566647631,-500.0,0.00017123,2]
[351425257,1738566647641,-500.0,0.00017123,2]
[351425258,1738566647651,-1325.61,0.00017123,2]
[351425259,1738566647660,-500.0,0.00017123,2]
[351425260,1738566647669,-500.0,0.00017123,2]
[351425261,1738566647678,-3962.47,0.00017123,2]
[351425262,1738566647688,-500.0,0.00017123,2]
[351425263,1738566647698,-803.39,0.00017123,2]
[351425264,1738566647707,-500.0,0.00017123,2]
[351425265,1738566647717,-500.0,0.00017123,2]
[351425266,1738566647727,-586.48,0.00017123,2]
[351425267,1738566647737,-2414.73,0.00017123,2]
[351425268,1738566647747,-500.0,0.00017123,2]
[351425269,1738566647757,-500.0,0.00017123,2]
[351425270,1738566647766,-603.88,0.00017123,2]
[351425271,1738566647777,-500.0,0.00017123,2]
[351425272,1738566647787,-500.0,0.00017123,2]
[351425273,1738566647797,-500.0,0.00017123,2]
[351425274,1738566647807,-4011.08,0.00017123,2]
[351425275,1738566647817,-986.66,0.00017123,2]
[351425276,1738566647827,-500.0,0.00017123,2]
[351425277,1738566647838,-500.0,0.00017123,2]
[351425278,1738566647848,-3160.39,0.00017123,2]
[351425279,1738566647858,-500.0,0.00017123,2]
[351425280,1738566647872,-500.0,0.00017123,2]
[351425281,1738566647881,-9304.74,0.00017123,2]
[351425282,1738566647890,-500.0,0.00017123,2]
[351425283,1738566647900,-500.0,0.00017123,2]
[351425284,1738566647909,-1439.17,0.00017123,2]
[351425285,1738566647919,-500.0,0.00017123,2]
[351425286,1738566647928,-302.87771494,0.00017123,2]
[351425287,1738566647938,-500.0,0.00017123,2]
[351425288,1738566647947,-1203.81,0.00017123,2]
[351425289,1738566647956,-151.0,0.00017123,2]
[351425290,1738566647966,-500.0,0.00017123,2]
[351425291,1738566647976,-593.75,0.00017123,2]
[351425292,1738566647985,-500.0,0.00017123,2]
[351425293,1738566647994,-500.0,0.00017123,2]
[351425294,1738566648003,-500.0,0.00017123,2]
[351425295,1738566648013,-500.0,0.00017123,2]
[351425296,1738566648022,-589.27,0.00017123,2]
[351425297,1738566648032,-829.0,0.00017123,2]
[351425298,1738566648041,-646.74,0.00017123,2]
[351425299,1738566648051,-500.0,0.00017123,2]
[351425300,1738566648060,-500.0,0.00017123,2]
[351425301,1738566648069,-500.0,0.00017123,2]
[351425302,1738566648079,-776.57,0.00017123,2]
[351425303,1738566648088,-60036.29,0.00017123,2]
[351425304,1738566648098,-500.0,0.00017123,2]
[351425305,1738566648107,-747.11,0.00017123,2]
[351425306,1738566648120,-500.0,0.00017123,2]
[351425307,1738566648129,-500.0,0.00017123,2]
[351425308,1738566648139,-1220.82,0.00017123,2]
[351425309,1738566648148,-500.0,0.00017123,2]
[351425310,1738566648157,-500.0,0.00017123,2]
[351425311,1738566648167,-500.0,0.00017123,2]
[351425312,1738566648176,-500.0,0.00017123,2]
[351425313,1738566648186,-1343.37,0.00017123,2]
[351425314,1738566648198,-13816.97,0.00017123,2]
[351425315,1738566648208,-500.0,0.00017123,2]
[351425316,1738566648217,-500.0,0.00017123,2]
[351425317,1738566648227,-500.0,0.00017123,2]
[351425318,1738566648237,-402.06740385,0.00017123,2]
[351425319,1738566648246,-704.42,0.00017123,2]
[351425320,1738566648256,-500.0,0.00017123,2]
[351425321,1738566648266,-2164.57,0.00017123,2]
[351425322,1738566648276,-2634.75,0.00017123,2]
[351425323,1738566648287,-500.0,0.00017123,2]
[351425324,1738566648297,-894.5,0.00017123,2]
[351425325,1738566648306,-538.94,0.00017123,2]
[351425326,1738566648316,-500.0,0.00017123,2]
[351425327,1738566648325,-1586.39,0.00017123,2]
[351425328,1738566648335,-151.0,0.00017123,2]
[351425329,1738566648344,-785.486199,0.00017123,7]
[351425330,1738566648354,-609.26,0.00017123,2]
[351425331,1738566648363,-500.0,0.00017123,2]
[351425332,1738566648378,-516.17430507,0.00017123,2]
[351425333,1738566648387,-500.0,0.00017123,2]
[351425334,1738566648397,-5712.66,0.00017123,2]
[351425335,1738566648407,-1112.34,0.00017123,2]
[351425336,1738566648416,-1163.8,0.00017123,2]
[351425337,1738566648425,-500.0,0.00017123,2]
[351425338,1738566648435,-795.43,0.00017123,2]
[351425339,1738566648444,-500.0,0.00017123,2]
[351425340,1738566648454,-500.0,0.00017123,2]
[351425341,1738566648464,-500.0,0.00017123,2]
[351425342,1738566648473,-575.26,0.00017123,2]
[351425343,1738566648483,-722.58,0.00017123,2]
[351425344,1738566648492,-500.0,0.00017123,2]
[351425345,1738566648501,-2753.55,0.00017123,2]
[351425346,1738566648515,-500.0,0.00017123,2]
[351425347,1738566648525,-500.0,0.00017123,2]
[351425348,1738566648535,-358.4876123,0.00017123,2]
[351425349,1738566648544,-354.5475049,0.00017123,2]
[351425350,1738566648554,-354.5475049,0.00017123,2]
[351425351,1738566648564,-354.5475049,0.00017123,2]
[351425352,1738566648574,-185.502272,0.00017123,2]
[351425353,1738566648584,-1000.0,0.00017142,2]
[351425354,1738566648594,-607.5695235,0.00017166,2]
[351425355,1738566648604,-5000.0,0.000172,2]
[351425356,1738566648614,-383.34342177,0.00017221,2]
[351425357,1738566648629,-1433.14991822,0.00017224,2]
[351425358,1738566648639,-537.0,0.00017243,2]
[351425359,1738566648648,-2048.616,0.00017243,2]
[351425360,1738566648657,-2300.0,0.00017243,2]
[351425361,1738566648667,-151.0,0.0001726,2]
[351425362,1738566648677,-151.0,0.0001726,2]
[351425363,1738566648687,-151.0,0.0001726,2]
[351425364,1738566648696,-252.979572,0.0001726,2]
[351425365,1738566648706,-151.0,0.0001726,2]
[351425366,1738566648716,-151.0,0.0001726,2]
[351425367,1738566648725,-207.602402,0.0001726,2]
[351425368,1738566648735,-187.347689,0.0001726,2]
[351425369,1738566648745,-187.347689,0.0001726,2]
[351425370,1738566648755,-1728.242392,0.0001726,2]
[351425371,1738566648764,-2103.510188,0.0001726,2]
[351425372,1738566648774,-214.411774,0.0001726,2]
[351425373,1738566648784,-214.411774,0.0001726,2]
[351425374,1738566648793,-2103.510188,0.0001726,2]
[351425375,1738566648802,-189.499866,0.0001726,2]
[351425376,1738566648812,-189.499866,0.0001726,2]
[351425377,1738566648821,-151.0,0.0001726,2]
[351425378,1738566648830,-268.096124,0.0001726,2]
[351425379,1738566648840,-151.0,0.0001726,2]
[351425380,1738566648849,-151.0,0.0001726,2]
[351425381,1738566648858,-151.0,0.0001726,2]
[351425382,1738566648869,-151.0,0.0001726,2]
[351425383,1738566648879,-500.0,0.0001726,2]
[351425384,1738566648889,-500.0,0.0001726,2]
[351425385,1738566648898,-500.0,0.0001726,2]
[351425386,1738566648908,-500.0,0.0001726,2]
[351425387,1738566649013,-500.0,0.0001726,2]
[351425388,1738566649023,-500.0,0.0001726,2]
[351425389,1738566649033,-500.0,0.0001726,2]
[351425390,1738566649042,-268.92197344,0.0001726,2]
[351425391,1738566649052,-500.0,0.0001726,2]
[351425392,1738566649062,-500.0,0.0001726,2]
[351425393,1738566649071,-500.0,0.0001726,2]
[351425394,1738566649080,-500.0,0.0001726,2]
[351425395,1738566649090,-500.0,0.0001726,2]
[351425396,1738566649100,-590.02948043,0.0001726,2]
[351425397,1738566649110,-597.26,0.0001726,2]
[351425398,1738566649122,-554.86,0.0001726,2]
[351425399,1738566649133,-500.0,0.0001726,2]
[351425400,1738566649142,-500.0,0.0001726,2]
[351425401,1738566649152,-500.0,0.0001726,2]
[351425402,1738566649162,-500.0,0.0001726,2]
[351425403,1738566649172,-538.48,0.0001726,2]
[351425404,1738566649182,-889.56,0.0001726,2]
[351425405,1738566649191,-500.0,0.0001726,2]
[351425406,1738566649201,-500.0,0.0001726,2]
[351425407,1738566649211,-500.0,0.0001726,2]
[351425408,1738566649221,-500.0,0.0001726,2]
[351425409,1738566649231,-565.19,0.0001726,2]
[351425410,1738566649240,-500.0,0.0001726,2]
[351425411,1738566649250,-500.0,0.0001726,2]
[351425412,1738566649260,-633.53,0.0001726,2]
[351425413,1738566649270,-619.09,0.0001726,2]
[351425414,1738566649280,-391.4701456,0.0001726,2]
[351425415,1738566649289,-500.0,0.0001726,2]
[351425416,1738566649299,-500.0,0.0001726,2]
[351425417,1738566649309,-500.0,0.0001726,2]
[351425418,1738566649319,-500.0,0.0001726,2]
[351425419,1738566649329,-500.0,0.0001726,2]
[351425420,1738566649338,-500.0,0.0001726,2]
[351425421,1738566649348,-635.73310744,0.0001726,2]
[351425422,1738566649357,-151.0,0.0001726,2]
[351425423,1738566649369,-500.0,0.0001726,2]
[351425424,1738566649379,-628.12,0.0001726,2]
[351425425,1738566649390,-500.0,0.0001726,2]
[351425426,1738566649400,-562.8508849,0.0001726,2]
[351425427,1738566649411,-500.0,0.0001726,2]
[351425428,1738566649420,-420.703244,0.0001726,2]
[351425429,1738566649430,-420.703244,0.0001726,2]
[351425430,1738566649440,-500.0,0.0001726,2]
[351425431,1738566649450,-500.0,0.0001726,2]
[351425432,1738566649460,-500.0,0.0001726,2]
[351425433,1738566649470,-500.0,0.0001726,2]
[351425434,1738566649479,-513.07,0.0001726,2]
[351425435,1738566649489,-1022.3881,0.0001726,2]
[351425436,1738566649499,-1022.3881,0.0001726,2]
[351425437,1738566649509,-569.36,0.0001726,2]
[351425438,1738566649523,-602.71,0.0001726,2]
[351425439,1738566649541,-151.0,0.0001726,2]
[351425440,1738566649551,-658.74,0.0001726,2]
[351425441,1738566649561,-500.0,0.0001726,2]
[351425442,1738566649570,-151.0,0.0001726,2]
[351425443,1738566649580,-500.0,0.0001726,2]
[351425444,1738566649589,-500.0,0.0001726,2]
[351425445,1738566649598,-500.0,0.0001726,2]
[351425446,1738566649607,-500.0,0.0001726,2]
[351425447,1738566649619,-500.0,0.0001726,2]
[351425448,1738566649629,-500.0,0.0001726,2]
[351425449,1738566649639,-500.0,0.0001726,2]
[351425450,1738566649648,-500.0,0.0001726,2]
[351425451,1738566649657,-500.0,0.0001726,2]
[351425452,1738566649667,-500.0,0.0001726,2]
[351425453,1738566649676,-500.0,0.0001726,2]
[351425454,1738566649686,-500.0,0.0001726,2]
[351425455,1738566649696,-500.0,0.0001726,2]
[351425456,1738566649706,-500.0,0.0001726,2]
[351425457,1738566649715,-500.0,0.0001726,2]
[351425458,1738566649725,-558.37,0.0001726,2]
[351425459,1738566649734,-424.116551,0.0001726,2]
[351425460,1738566649745,-424.116551,0.0001726,2]
[351425461,1738566649756,-543.56,0.0001726,2]
[351425462,1738566649766,-520.392392,0.0001726,2]
[351425463,1738566649776,-500.0,0.0001726,2]
[351425464,1738566649786,-500.0,0.0001726,2]
[351425465,1738566649795,-567.36,0.0001726,2]
[351425466,1738566649805,-453.52877767,0.0001726,2]
[351425467,1738566649815,-593.93,0.0001726,2]
[351425468,1738566649833,-457.766663,0.0001726,2]
[351425469,1738566649849,-1178.59,0.0001726,2]
[351425470,1738566649869,-457.766663,0.0001726,2]
[351425471,1738566649885,-1456.62,0.0001726,2]
[351425472,1738566649901,-356.33756007,0.0001726,2]
[351425473,1738566649913,-960.4,0.0001726,2]
[351425474,1738566649924,-500.0,0.0001726,2]
[351425475,1738566649937,-739.54,0.0001726,2]
[351425476,1738566649950,-500.0,0.0001726,2]
[351425477,1738566649965,-1726.8,0.0001726,2]
[351425478,1738566649977,-500.0,0.0001726,2]
[351425479,1738566649990,-2218.13,0.0001726,2]
[351425480,1738566650005,-500.0,0.0001726,2]
[351425481,1738566650022,-500.0,0.0001726,2]
[351425482,1738566650039,-1325.61,0.0001726,2]
[351425483,1738566650061,-500.0,0.0001726,2]
[351425484,1738566650074,-162.082593,0.0001726,2]
[351425485,1738566650093,-500.0,0.0001726,2]
[351425486,1738566650104,-162.082593,0.0001726,2]
[351425487,1738566650119,-3962.47,0.0001726,2]
[351425488,1738566650134,-207.332486,0.0001726,2]
[351425489,1738566650145,-207.332486,0.0001726,2]
[351425490,1738566650159,-500.0,0.0001726,2]
[351425491,1738566650172,-164.399809,0.0001726,2]
[351425492,1738566650186,-803.39,0.0001726,2]
[351425493,1738566650200,-500.0,0.0001726,2]
[351425494,1738566650213,-500.0,0.0001726,2]
[351425495,1738566650226,-164.399809,0.0001726,2]
[351425496,1738566650240,-586.48,0.0001726,2]
[351425497,1738566650253,-2414.73,0.0001726,2]
[351425498,1738566650267,-500.0,0.0001726,2]
[351425499,1738566650280,-500.0,0.0001726,2]
[351425500,1738566650294,-838.457006,0.0001726,2]
[351425501,1738566650308,-603.88,0.0001726,2]
[351425502,1738566650321,-500.0,0.0001726,2]
[351425503,1738566650335,-500.0,0.0001726,2]
[351425504,1738566650348,-838.457006,0.0001726,2]
[351425505,1738566650362,-505.74415829,0.0001726,2]
[351425506,1738566650378,-4011.08,0.0001726,2]